[Event "*** SCC Grand Prix: Titled Tuesday Blitz"]
[Site "Chess.com"]
[Date "2020.08.25"]
[Round "3"]
[White "QuintilianoR"]
[Black "Harsha_Bharathakoti"]
[Result "1-0"]
[WhiteElo "2622"]
[BlackElo "2817"]
[TimeControl "180+1"]
[EndTime "10:29:46 PDT"]
[Termination "QuintilianoR won by resignation"]

1. d4 {[%clk 0:03:00.9]} 1... Nf6 {[%clk 0:02:44.8]} 2. c4 {[%clk 0:03:00.6]}
2... g6 {[%clk 0:02:38.9]} 3. Nf3 {[%clk 0:03:00.5]} 3... Bg7 {[%clk 0:02:38.7]}
4. Nc3 {[%clk 0:03:01]} 4... d5 {[%clk 0:02:39]} 5. h4 {[%clk 0:03:00.8]} 5...
c6 {[%clk 0:02:38.6]} 6. cxd5 {[%clk 0:02:59.6]} 6... cxd5 {[%clk 0:02:39.5]} 7.
Bf4 {[%clk 0:02:59.2]} 7... Nc6 {[%clk 0:02:37]} 8. e3 {[%clk 0:02:59.2]} 8...
O-O {[%clk 0:02:32.8]} 9. Qb3 {[%clk 0:02:55.7]} 9... Na5 {[%clk 0:02:32.7]} 10.
Qa3 {[%clk 0:02:43.7]} 10... Bf5 {[%clk 0:02:08.4]} 11. Rc1 {[%clk 0:02:29.9]}
11... Rc8 {[%clk 0:02:04.3]} 12. Be2 {[%clk 0:02:27.1]} 12... a6 {[%clk
0:01:52.5]} 13. O-O {[%clk 0:02:18.2]} 13... Nc4 {[%clk 0:01:35.2]} 14. Qb4
{[%clk 0:02:03.8]} 14... Qb6 {[%clk 0:01:18.9]} 15. Qxb6 {[%clk 0:01:29.3]}
15... Nxb6 {[%clk 0:01:19.8]} 16. Nd2 {[%clk 0:01:17.2]} 16... Bd7 {[%clk
0:01:07.9]} 17. Nb3 {[%clk 0:01:14]} 17... Nc4 {[%clk 0:01:04]} 18. Nc5 {[%clk
0:00:59.3]} 18... Bc6 {[%clk 0:01:02.4]} 19. b3 {[%clk 0:00:54.1]} 19... Nb6
{[%clk 0:00:54.4]} 20. Rc2 {[%clk 0:00:47.8]} 20... Nfd7 {[%clk 0:00:54]} 21.
Nxd7 {[%clk 0:00:46.9]} 21... Bxd7 {[%clk 0:00:51.4]} 22. Rfc1 {[%clk
0:00:45.7]} 22... Bf5 {[%clk 0:00:51.6]} 23. Rd2 {[%clk 0:00:41.2]} 23... Rc6
{[%clk 0:00:46.6]} 24. g4 {[%clk 0:00:30.6]} 24... Be6 {[%clk 0:00:45.8]} 25.
Rdc2 {[%clk 0:00:27.9]} 25... Rfc8 {[%clk 0:00:46.1]} 26. f3 {[%clk 0:00:26.9]}
26... h5 {[%clk 0:00:29.7]} 27. Kf2 {[%clk 0:00:25.8]} 27... Bf6 {[%clk
0:00:28.8]} 28. Kg3 {[%clk 0:00:25.2]} 28... Nd7 {[%clk 0:00:25.8]} 29. Bd3
{[%clk 0:00:23]} 29... b5 {[%clk 0:00:24.9]} 30. Ne2 {[%clk 0:00:21.6]} 30...
hxg4 {[%clk 0:00:23.3]} 31. Rxc6 {[%clk 0:00:18.8]} 1-0

[Event "*** SCC Grand Prix: Titled Tuesday Blitz"]
[Site "Chess.com"]
[Date "2020.08.25"]
[Round "3"]
[White "VincentKeymer"]
[Black "FedaMaster"]
[Result "1-0"]
[WhiteElo "2799"]
[BlackElo "2433"]
[TimeControl "180+1"]
[EndTime "10:29:46 PDT"]
[Termination "VincentKeymer won on time"]

1. d4 {[%clk 0:03:00.9]} 1... f5 {[%clk 0:02:55.6]} 2. Bg5 {[%clk 0:02:59.6]}
2... g6 {[%clk 0:02:55.3]} 3. e3 {[%clk 0:02:53.1]} 3... h6 {[%clk 0:02:53.3]}
4. Bf4 {[%clk 0:02:46.9]} 4... Nf6 {[%clk 0:02:52.7]} 5. Nf3 {[%clk 0:02:45.3]}
5... d6 {[%clk 0:02:49.9]} 6. Bc4 {[%clk 0:02:37.4]} 6... e6 {[%clk 0:02:49.8]}
7. Nc3 {[%clk 0:02:30.3]} 7... Bg7 {[%clk 0:02:46.5]} 8. Qe2 {[%clk 0:02:22.2]}
8... Qe7 {[%clk 0:02:25.7]} 9. O-O-O {[%clk 0:02:19.4]} 9... g5 {[%clk 0:02:20]}
10. Bg3 {[%clk 0:02:14.3]} 10... Nc6 {[%clk 0:02:06.6]} 11. h4 {[%clk 0:02:06]}
11... g4 {[%clk 0:02:03.5]} 12. Ne1 {[%clk 0:02:05.4]} 12... Nh5 {[%clk
0:01:44.2]} 13. Bh2 {[%clk 0:01:54.2]} 13... Bd7 {[%clk 0:01:41.5]} 14. Nd3
{[%clk 0:01:50.2]} 14... Na5 {[%clk 0:01:38.8]} 15. Bb3 {[%clk 0:01:42]} 15...
Nxb3+ {[%clk 0:01:34.6]} 16. axb3 {[%clk 0:01:42.9]} 16... Bc6 {[%clk
0:01:23.4]} 17. f3 {[%clk 0:01:41.8]} 17... gxf3 {[%clk 0:00:58.2]} 18. gxf3
{[%clk 0:01:42.7]} 18... O-O-O {[%clk 0:00:56.3]} 19. Kb1 {[%clk 0:01:17.2]}
19... Kb8 {[%clk 0:00:56]} 20. Nb4 {[%clk 0:01:03.3]} 20... Bd7 {[%clk
0:00:55.2]} 21. d5 {[%clk 0:01:02]} 21... Bxc3 {[%clk 0:00:24.6]} 22. bxc3
{[%clk 0:01:00.8]} 22... e5 {[%clk 0:00:13]} 23. Kb2 {[%clk 0:00:48]} 23... Rhg8
{[%clk 0:00:12.5]} 24. Ra1 {[%clk 0:00:47.5]} 24... Ng3 {[%clk 0:00:10]} 25.
Bxg3 {[%clk 0:00:46.7]} 25... Rxg3 {[%clk 0:00:10.9]} 26. Na6+ {[%clk
0:00:41.4]} 26... Kc8 {[%clk 0:00:09]} 27. Qc4 {[%clk 0:00:41.2]} 27... Be8
{[%clk 0:00:07.8]} 28. Nb4 {[%clk 0:00:40.5]} 28... Kb8 {[%clk 0:00:07.4]} 29.
Nc6+ {[%clk 0:00:37.1]} 29... Bxc6 {[%clk 0:00:03.1]} 30. dxc6 {[%clk
0:00:36.8]} 30... Qe6 {[%clk 0:00:02.4]} 31. Qb5 {[%clk 0:00:34.2]} 1-0

[Event "*** SCC Grand Prix: Titled Tuesday Blitz"]
[Site "Chess.com"]
[Date "2020.08.25"]
[Round "3"]
[White "Witik"]
[Black "ChessBitl"]
[Result "1/2-1/2"]
[WhiteElo "2656"]
[BlackElo "2480"]
[TimeControl "180+1"]
[EndTime "10:29:47 PDT"]
[Termination "Game drawn by repetition"]

1. d4 {[%clk 0:03:00.9]} 1... Nf6 {[%clk 0:02:59.3]} 2. Bf4 {[%clk 0:02:55.8]}
2... g6 {[%clk 0:02:59.6]} 3. Nf3 {[%clk 0:02:53.4]} 3... Bg7 {[%clk 0:03:00.5]}
4. Nc3 {[%clk 0:02:50.3]} 4... d6 {[%clk 0:03:00.8]} 5. e4 {[%clk 0:02:44.8]}
5... O-O {[%clk 0:03:01]} 6. h3 {[%clk 0:02:44.4]} 6... Nc6 {[%clk 0:02:35.3]}
7. Bh2 {[%clk 0:02:40.4]} 7... e5 {[%clk 0:02:29.4]} 8. dxe5 {[%clk 0:02:37]}
8... Nxe5 {[%clk 0:02:29.1]} 9. Be2 {[%clk 0:02:27.1]} 9... Be6 {[%clk
0:02:19.3]} 10. Nxe5 {[%clk 0:02:17.3]} 10... dxe5 {[%clk 0:02:19.4]} 11. Qxd8
{[%clk 0:02:14.9]} 11... Raxd8 {[%clk 0:02:14.5]} 12. Bxe5 {[%clk 0:02:15.8]}
12... c6 {[%clk 0:02:06.8]} 13. O-O {[%clk 0:02:11.4]} 13... b5 {[%clk
0:02:02.3]} 14. a3 {[%clk 0:02:04.8]} 14... a5 {[%clk 0:01:58.4]} 15. f3 {[%clk
0:01:59.2]} 15... Nd7 {[%clk 0:01:42.9]} 16. Bxg7 {[%clk 0:01:57.3]} 16... Kxg7
{[%clk 0:01:43.8]} 17. Rfd1 {[%clk 0:01:51.5]} 17... Nb6 {[%clk 0:01:36.6]} 18.
Rxd8 {[%clk 0:01:21]} 18... Rxd8 {[%clk 0:01:37.5]} 19. Rd1 {[%clk 0:01:21.5]}
19... Rxd1+ {[%clk 0:01:29.5]} 20. Nxd1 {[%clk 0:01:18.3]} 20... f5 {[%clk
0:01:30.4]} 21. exf5 {[%clk 0:01:15.3]} 21... Bxf5 {[%clk 0:01:29.3]} 22. Ne3
{[%clk 0:01:15.5]} 22... Na4 {[%clk 0:01:22]} 23. g4 {[%clk 0:00:51.5]} 23...
Be6 {[%clk 0:01:16.4]} 24. Nd1 {[%clk 0:00:50.5]} 24... g5 {[%clk 0:01:14.2]}
25. Kf2 {[%clk 0:00:49.3]} 25... Kf6 {[%clk 0:01:10.9]} 26. Ke3 {[%clk
0:00:48.3]} 26... Ke5 {[%clk 0:01:11.3]} 27. b3 {[%clk 0:00:44.3]} 27... Nb6
{[%clk 0:01:07.3]} 28. Nb2 {[%clk 0:00:32]} 28... Nd5+ {[%clk 0:01:03.3]} 29.
Kd2 {[%clk 0:00:27.7]} 29... Nf4 {[%clk 0:01:02.8]} 30. Bf1 {[%clk 0:00:24.3]}
30... b4 {[%clk 0:00:59.6]} 31. a4 {[%clk 0:00:22.7]} 31... Kd4 {[%clk
0:00:55.4]} 32. Nd3 {[%clk 0:00:19.5]} 32... Nxd3 {[%clk 0:00:51.2]} 33. Bxd3
{[%clk 0:00:19.1]} 33... h6 {[%clk 0:00:51.6]} 34. Be4 {[%clk 0:00:15.6]} 34...
c5 {[%clk 0:00:51.2]} 35. Bd3 {[%clk 0:00:14.5]} 35... Bf7 {[%clk 0:00:46.7]}
36. Bb5 {[%clk 0:00:13.7]} 36... Bd5 {[%clk 0:00:46]} 37. Be2 {[%clk 0:00:13.4]}
37... Be6 {[%clk 0:00:45.4]} 38. Bb5 {[%clk 0:00:13.2]} 38... Bd5 {[%clk
0:00:45.3]} 39. Be2 {[%clk 0:00:13.6]} 39... Be6 {[%clk 0:00:45.2]} 40. Bb5
{[%clk 0:00:13.8]} 40... Bd5 {[%clk 0:00:45.3]} 1/2-1/2

[Event "*** SCC Grand Prix: Titled Tuesday Blitz"]
[Site "Chess.com"]
[Date "2020.08.25"]
[Round "3"]
[White "lifeissofun"]
[Black "brute4ever"]
[Result "0-1"]
[WhiteElo "2243"]
[BlackElo "2498"]
[TimeControl "180+1"]
[EndTime "10:29:48 PDT"]
[Termination "brute4ever won on time"]

1. e4 {[%clk 0:03:00.9]} 1... c5 {[%clk 0:02:58.6]} 2. Nf3 {[%clk 0:03:01]} 2...
d6 {[%clk 0:02:59]} 3. d4 {[%clk 0:03:01.6]} 3... cxd4 {[%clk 0:02:59.9]} 4.
Nxd4 {[%clk 0:03:02.3]} 4... Nf6 {[%clk 0:03:00.5]} 5. Nc3 {[%clk 0:03:03]} 5...
a6 {[%clk 0:03:01.1]} 6. h3 {[%clk 0:03:03.5]} 6... e6 {[%clk 0:02:58.7]} 7. g4
{[%clk 0:03:03.1]} 7... h6 {[%clk 0:02:59.2]} 8. Bg2 {[%clk 0:03:03]} 8... g5
{[%clk 0:02:58.7]} 9. O-O {[%clk 0:03:01.6]} 9... Nbd7 {[%clk 0:02:58.6]} 10. f4
{[%clk 0:03:00.5]} 10... gxf4 {[%clk 0:02:57.8]} 11. Bxf4 {[%clk 0:02:59.8]}
11... e5 {[%clk 0:02:53.9]} 12. Nf5 {[%clk 0:02:39.3]} 12... exf4 {[%clk
0:02:53.5]} 13. Rxf4 {[%clk 0:02:29.4]} 13... Ne5 {[%clk 0:02:51.9]} 14. Kh1
{[%clk 0:02:20]} 14... Be6 {[%clk 0:02:48.1]} 15. Qd4 {[%clk 0:02:14.3]} 15...
Qc7 {[%clk 0:02:38.6]} 16. Na4 {[%clk 0:02:03.9]} 16... O-O-O {[%clk 0:02:25.7]}
17. Re1 {[%clk 0:01:54.8]} 17... Nfd7 {[%clk 0:02:21]} 18. Re3 {[%clk
0:01:53.4]} 18... Kb8 {[%clk 0:02:15.7]} 19. Rc3 {[%clk 0:01:51.4]} 19... Qa5
{[%clk 0:02:13.5]} 20. Nxd6 {[%clk 0:01:40.5]} 20... h5 {[%clk 0:01:45.7]} 21.
g5 {[%clk 0:00:31.1]} 21... Ng6 {[%clk 0:01:11.9]} 22. Nxb7 {[%clk 0:00:28.8]}
22... Kxb7 {[%clk 0:01:02.8]} 23. e5+ {[%clk 0:00:29.1]} 23... Kb8 {[%clk
0:01:02.4]} 24. Qe4 {[%clk 0:00:16.3]} 24... Bd5 {[%clk 0:00:46.2]} 25. Rb3+
{[%clk 0:00:08.4]} 25... Kc7 {[%clk 0:00:42.5]} 26. Rc3+ {[%clk 0:00:07.7]}
26... Qxc3 {[%clk 0:00:26.1]} 0-1

[Event "*** SCC Grand Prix: Titled Tuesday Blitz"]
[Site "Chess.com"]
[Date "2020.08.25"]
[Round "3"]
[White "fabianvivasz"]
[Black "Yana_pro"]
[Result "1-0"]
[WhiteElo "2308"]
[BlackElo "2080"]
[TimeControl "180+1"]
[EndTime "10:29:48 PDT"]
[Termination "fabianvivasz won by resignation"]

1. e4 {[%clk 0:03:00.9]} 1... Nf6 {[%clk 0:02:58.9]} 2. e5 {[%clk 0:02:54.7]}
2... Nd5 {[%clk 0:02:59.3]} 3. d4 {[%clk 0:02:55.1]} 3... d6 {[%clk 0:02:58.9]}
4. c4 {[%clk 0:02:55.7]} 4... Nb6 {[%clk 0:02:57.5]} 5. exd6 {[%clk 0:02:46.5]}
5... exd6 {[%clk 0:02:54.8]} 6. Nc3 {[%clk 0:02:44]} 6... Be7 {[%clk 0:02:54.4]}
7. Bd3 {[%clk 0:02:41.4]} 7... Nc6 {[%clk 0:02:46.5]} 8. Be3 {[%clk 0:02:34.8]}
8... O-O {[%clk 0:02:38.4]} 9. b3 {[%clk 0:02:33.7]} 9... Bf6 {[%clk 0:02:37]}
10. Nge2 {[%clk 0:02:33.6]} 10... Bg4 {[%clk 0:02:34.9]} 11. f3 {[%clk
0:02:17.2]} 11... Re8 {[%clk 0:02:35.1]} 12. Qd2 {[%clk 0:02:07.8]} 12... Bh5
{[%clk 0:02:22]} 13. O-O {[%clk 0:02:01.8]} 13... d5 {[%clk 0:02:20]} 14. c5
{[%clk 0:01:57]} 14... Nc8 {[%clk 0:02:19.8]} 15. Nf4 {[%clk 0:01:53.1]} 15...
Bg6 {[%clk 0:02:14.5]} 16. Bxg6 {[%clk 0:01:38]} 16... hxg6 {[%clk 0:02:07.2]}
17. Nfxd5 {[%clk 0:01:37.6]} 17... N8e7 {[%clk 0:01:46.5]} 18. Nxf6+ {[%clk
0:01:29.9]} 18... gxf6 {[%clk 0:01:47.4]} 19. d5 {[%clk 0:01:28.6]} 19... Ne5
{[%clk 0:01:28.9]} 20. Rad1 {[%clk 0:01:18.9]} 20... Nf5 {[%clk 0:01:28.9]} 21.
Bf2 {[%clk 0:01:10.1]} 21... Qd7 {[%clk 0:01:24.3]} 22. Ne4 {[%clk 0:00:59.4]}
22... Kg7 {[%clk 0:01:21.8]} 23. Qc3 {[%clk 0:00:52]} 23... Qe7 {[%clk
0:01:04.8]} 24. Rfe1 {[%clk 0:00:42.7]} 24... Rad8 {[%clk 0:01:00.7]} 25. Kf1
{[%clk 0:00:29]} 25... Rh8 {[%clk 0:00:52.2]} 26. h3 {[%clk 0:00:28.9]} 26... b6
{[%clk 0:00:45.3]} 27. f4 {[%clk 0:00:27.2]} 27... Nd7 {[%clk 0:00:37.3]} 28. c6
{[%clk 0:00:24.6]} 28... Nc5 {[%clk 0:00:32.9]} 29. Nxc5 {[%clk 0:00:23.4]}
29... Qxe1+ {[%clk 0:00:31.3]} 30. Rxe1 {[%clk 0:00:20.5]} 30... Rxd5 {[%clk
0:00:32.2]} 31. Ne4 {[%clk 0:00:19.6]} 31... Rd6 {[%clk 0:00:30.5]} 32. Nxd6
{[%clk 0:00:19.7]} 32... Nxd6 {[%clk 0:00:31]} 33. Bd4 {[%clk 0:00:19.8]} 33...
Re8 {[%clk 0:00:31]} 34. Bxf6+ {[%clk 0:00:19.6]} 34... Kg8 {[%clk 0:00:30.8]}
35. Rxe8+ {[%clk 0:00:20]} 35... Nxe8 {[%clk 0:00:31.7]} 36. Bd8 {[%clk
0:00:20.1]} 36... Nd6 {[%clk 0:00:32.6]} 37. Qe5 {[%clk 0:00:19.8]} 37... Kf8
{[%clk 0:00:33.5]} 38. Qe7+ {[%clk 0:00:19.8]} 1-0

[Event "*** SCC Grand Prix: Titled Tuesday Blitz"]
[Site "Chess.com"]
[Date "2020.08.25"]
[Round "3"]
[White "Tactictic"]
[Black "AlexTriapishko"]
[Result "0-1"]
[WhiteElo "2368"]
[BlackElo "2709"]
[TimeControl "180+1"]
[EndTime "10:29:49 PDT"]
[Termination "AlexTriapishko won by resignation"]

1. e4 {[%clk 0:03:00.9]} 1... c6 {[%clk 0:02:11.6]} 2. d4 {[%clk 0:03:00.5]}
2... d5 {[%clk 0:02:12.5]} 3. e5 {[%clk 0:03:01]} 3... Bf5 {[%clk 0:02:12.2]} 4.
h4 {[%clk 0:03:01.3]} 4... h5 {[%clk 0:02:11.8]} 5. Bd3 {[%clk 0:03:01]} 5...
Bxd3 {[%clk 0:02:11.7]} 6. Qxd3 {[%clk 0:03:01.9]} 6... Qa5+ {[%clk 0:02:12.3]}
7. Bd2 {[%clk 0:02:50.4]} 7... Qa6 {[%clk 0:02:11.7]} 8. e6 {[%clk 0:02:50.4]}
8... Qxd3 {[%clk 0:02:10.8]} 9. exf7+ {[%clk 0:02:49.1]} 9... Kxf7 {[%clk
0:02:11.7]} 10. cxd3 {[%clk 0:02:49.2]} 10... Nd7 {[%clk 0:02:12.6]} 11. Nf3
{[%clk 0:02:48.1]} 11... g6 {[%clk 0:02:02.3]} 12. Bf4 {[%clk 0:02:38.2]} 12...
Bh6 {[%clk 0:01:54.7]} 13. Be5 {[%clk 0:02:23.4]} 13... Ngf6 {[%clk 0:01:50.2]}
14. O-O {[%clk 0:02:07.5]} 14... Rhf8 {[%clk 0:01:45.8]} 15. Re1 {[%clk
0:01:56.1]} 15... Rae8 {[%clk 0:01:44.1]} 16. Nc3 {[%clk 0:01:40.8]} 16... Ng4
{[%clk 0:01:38.3]} 17. Bg3 {[%clk 0:01:35.2]} 17... Kg8 {[%clk 0:01:38.3]} 18.
Re6 {[%clk 0:01:33.7]} 18... Rf6 {[%clk 0:01:35]} 19. Rae1 {[%clk 0:01:31.7]}
19... Rxe6 {[%clk 0:01:35.3]} 20. Rxe6 {[%clk 0:01:31.3]} 20... Kf7 {[%clk
0:01:36.2]} 21. Re2 {[%clk 0:01:29]} 21... a6 {[%clk 0:01:26.2]} 22. b4 {[%clk
0:00:48.7]} 22... Nf8 {[%clk 0:01:20.1]} 23. Na4 {[%clk 0:00:30.9]} 23... Ne6
{[%clk 0:01:19.8]} 24. Nc5 {[%clk 0:00:23.6]} 24... Nxc5 {[%clk 0:01:20]} 25.
bxc5 {[%clk 0:00:21.7]} 25... Rd8 {[%clk 0:01:20.9]} 26. Ng5+ {[%clk 0:00:16.4]}
26... Ke8 {[%clk 0:01:15.2]} 27. Re6 {[%clk 0:00:10]} 27... Nf6 {[%clk
0:01:11.4]} 28. Be5 {[%clk 0:00:08]} 28... Bg7 {[%clk 0:01:11.8]} 29. Nh7 {[%clk
0:00:04.5]} 29... Nxh7 {[%clk 0:01:08.6]} 30. Bxg7 {[%clk 0:00:03.9]} 30... Kf7
{[%clk 0:01:09]} 31. Re5 {[%clk 0:00:03.3]} 31... Kxg7 {[%clk 0:01:06.5]} 32.
Rxe7+ {[%clk 0:00:03.7]} 32... Kh6 {[%clk 0:01:07.3]} 33. Rxb7 {[%clk
0:00:04.3]} 33... Re8 {[%clk 0:00:57.7]} 34. Rb6 {[%clk 0:00:03.5]} 34... Re1+
{[%clk 0:00:57.9]} 35. Kh2 {[%clk 0:00:03.1]} 35... Rd1 {[%clk 0:00:58.8]} 36.
Rxc6 {[%clk 0:00:03.1]} 36... Rxd3 {[%clk 0:00:59.4]} 37. Rxa6 {[%clk
0:00:03.6]} 37... Rxd4 {[%clk 0:00:59.8]} 38. Rd6 {[%clk 0:00:03.3]} 38... Rxh4+
{[%clk 0:01:00]} 39. Kg1 {[%clk 0:00:03.8]} 39... Rc4 {[%clk 0:00:58.3]} 40.
Rxd5 {[%clk 0:00:03.2]} 40... Nf6 {[%clk 0:00:58.9]} 41. Re5 {[%clk 0:00:02.6]}
41... Rc1+ {[%clk 0:00:58.6]} 42. Kh2 {[%clk 0:00:02.4]} 42... Ng4+ {[%clk
0:00:58.8]} 0-1

[Event "*** SCC Grand Prix: Titled Tuesday Blitz"]
[Site "Chess.com"]
[Date "2020.08.25"]
[Round "3"]
[White "talman67"]
[Black "Fortitudine"]
[Result "1-0"]
[WhiteElo "2496"]
[BlackElo "2233"]
[TimeControl "180+1"]
[EndTime "10:29:49 PDT"]
[Termination "talman67 won by checkmate"]

1. e4 {[%clk 0:03:00.9]} 1... c5 {[%clk 0:02:59.5]} 2. Nf3 {[%clk 0:03:01.4]}
2... d6 {[%clk 0:02:59.3]} 3. d4 {[%clk 0:03:02]} 3... cxd4 {[%clk 0:03:00.2]}
4. Nxd4 {[%clk 0:03:02.9]} 4... Nf6 {[%clk 0:03:00.2]} 5. Nc3 {[%clk 0:03:03.6]}
5... Nc6 {[%clk 0:02:59.8]} 6. Bg5 {[%clk 0:03:03.3]} 6... Bd7 {[%clk
0:02:59.5]} 7. Qd2 {[%clk 0:03:02.5]} 7... Rc8 {[%clk 0:02:59.2]} 8. O-O-O
{[%clk 0:03:00.5]} 8... Nxd4 {[%clk 0:02:58.9]} 9. Qxd4 {[%clk 0:03:01.4]} 9...
Qa5 {[%clk 0:02:59.3]} 10. f4 {[%clk 0:03:01.2]} 10... e5 {[%clk 0:02:55.6]} 11.
Qd3 {[%clk 0:02:59.2]} 11... Rxc3 {[%clk 0:02:55.1]} 12. Qxc3 {[%clk 0:02:55.8]}
12... Qxc3 {[%clk 0:02:54.8]} 13. bxc3 {[%clk 0:02:56.7]} 13... Nxe4 {[%clk
0:02:54.8]} 14. Bh4 {[%clk 0:02:42.1]} 14... exf4 {[%clk 0:02:38.7]} 15. Re1
{[%clk 0:02:40.3]} 15... f5 {[%clk 0:02:37.7]} 16. Bd3 {[%clk 0:02:05]} 16...
Bc6 {[%clk 0:02:37.3]} 17. Rhf1 {[%clk 0:02:04.6]} 17... h6 {[%clk 0:02:31.2]}
18. Rxf4 {[%clk 0:02:03.2]} 18... g5 {[%clk 0:02:24.5]} 19. Rxf5 {[%clk
0:02:03.2]} 19... d5 {[%clk 0:02:01.3]} 20. c4 {[%clk 0:02:02.6]} 20... Ba3+
{[%clk 0:02:00.7]} 21. Kd1 {[%clk 0:01:57.4]} 21... Kd8 {[%clk 0:01:49.2]} 22.
cxd5 {[%clk 0:01:55.7]} 22... Nc3+ {[%clk 0:01:44.9]} 23. Kd2 {[%clk 0:01:54.4]}
23... Nxd5 {[%clk 0:01:40.2]} 24. Bg3 {[%clk 0:01:39.5]} 24... Bb4+ {[%clk
0:01:37.7]} 25. Kc1 {[%clk 0:01:38.8]} 25... Bxe1 {[%clk 0:01:36.6]} 26. Bxe1
{[%clk 0:01:38.9]} 26... Nf4 {[%clk 0:01:26.7]} 27. g3 {[%clk 0:01:34.1]} 27...
Nxd3+ {[%clk 0:01:25.9]} 28. cxd3 {[%clk 0:01:34.3]} 28... Re8 {[%clk
0:01:24.3]} 29. Bc3 {[%clk 0:01:32.5]} 29... Re6 {[%clk 0:01:23.3]} 30. Kd2
{[%clk 0:01:30.8]} 30... Kd7 {[%clk 0:01:17.2]} 31. Rf7+ {[%clk 0:01:20.1]}
31... Kc8 {[%clk 0:01:16.8]} 32. Rh7 {[%clk 0:01:20]} 32... Bd5 {[%clk
0:01:14.5]} 33. a4 {[%clk 0:01:18.5]} 33... Bf3 {[%clk 0:00:58.7]} 34. Bd4
{[%clk 0:01:08.3]} 34... Re2+ {[%clk 0:00:54.4]} 35. Kc3 {[%clk 0:01:08.5]}
35... Rxh2 {[%clk 0:00:53.2]} 36. Bxa7 {[%clk 0:01:08.7]} 36... h5 {[%clk
0:00:41.4]} 37. Bb6 {[%clk 0:01:07.8]} 37... h4 {[%clk 0:00:34]} 38. Rc7+ {[%clk
0:00:59.6]} 38... Kb8 {[%clk 0:00:33.3]} 39. gxh4 {[%clk 0:00:53.1]} 39... g4
{[%clk 0:00:16.7]} 40. Rd7 {[%clk 0:00:49.5]} 40... Kc8 {[%clk 0:00:16]} 41.
Rd8# {[%clk 0:00:49.8]} 1-0

[Event "*** SCC Grand Prix: Titled Tuesday Blitz"]
[Site "Chess.com"]
[Date "2020.08.25"]
[Round "3"]
[White "Revnov"]
[Black "Haykoooo0o"]
[Result "1-0"]
[WhiteElo "2699"]
[BlackElo "2517"]
[TimeControl "180+1"]
[EndTime "10:29:50 PDT"]
[Termination "Revnov won by checkmate"]

1. e4 {[%clk 0:03:00.9]} 1... e6 {[%clk 0:02:52]} 2. Qe2 {[%clk 0:02:55.2]} 2...
c5 {[%clk 0:02:36.4]} 3. Nf3 {[%clk 0:02:54.5]} 3... a6 {[%clk 0:02:35.1]} 4. g3
{[%clk 0:02:52.5]} 4... Qc7 {[%clk 0:02:34.1]} 5. Bg2 {[%clk 0:02:52]} 5... d6
{[%clk 0:02:34]} 6. O-O {[%clk 0:02:50.7]} 6... Nc6 {[%clk 0:02:34.1]} 7. c3
{[%clk 0:02:49.7]} 7... Nf6 {[%clk 0:02:30.9]} 8. d4 {[%clk 0:02:49.6]} 8...
cxd4 {[%clk 0:02:28.1]} 9. cxd4 {[%clk 0:02:50.5]} 9... Be7 {[%clk 0:02:28.2]}
10. Nc3 {[%clk 0:02:50]} 10... O-O {[%clk 0:02:25.3]} 11. e5 {[%clk 0:02:47.3]}
11... Nd5 {[%clk 0:02:17]} 12. Nxd5 {[%clk 0:02:43.2]} 12... exd5 {[%clk
0:02:17.9]} 13. Bf4 {[%clk 0:02:35.3]} 13... dxe5 {[%clk 0:02:11.6]} 14. Nxe5
{[%clk 0:02:27.4]} 14... Nxd4 {[%clk 0:01:35.6]} 15. Qd3 {[%clk 0:02:25.8]}
15... Ne6 {[%clk 0:01:33.2]} 16. Rac1 {[%clk 0:02:16.1]} 16... Nxf4 {[%clk
0:01:29.1]} 17. gxf4 {[%clk 0:02:03.7]} 17... Qb6 {[%clk 0:01:22]} 18. Bxd5
{[%clk 0:01:56.9]} 18... Qf6 {[%clk 0:01:10.8]} 19. Qg3 {[%clk 0:01:45.6]} 19...
Rb8 {[%clk 0:01:03.1]} 20. Rfe1 {[%clk 0:01:37.6]} 20... Bf5 {[%clk 0:01:01.9]}
21. h3 {[%clk 0:01:33.9]} 21... Rfd8 {[%clk 0:00:59.9]} 22. Bxf7+ {[%clk
0:01:30.3]} 22... Kh8 {[%clk 0:00:59.2]} 23. Bb3 {[%clk 0:01:28.4]} 23... Rf8
{[%clk 0:00:58.4]} 24. Rc7 {[%clk 0:01:11.8]} 24... Be6 {[%clk 0:00:30.4]} 25.
Ng4 {[%clk 0:00:59.8]} 25... Bxg4 {[%clk 0:00:27.2]} 26. Rexe7 {[%clk
0:00:58.9]} 26... Bf5 {[%clk 0:00:22.5]} 27. Rxg7 {[%clk 0:00:52]} 27... Qxb2
{[%clk 0:00:22.3]} 28. Kh2 {[%clk 0:00:41.3]} 28... Qa1 {[%clk 0:00:19.3]} 29.
Rce7 {[%clk 0:00:31.9]} 29... Rbd8 {[%clk 0:00:17.2]} 30. Re5 {[%clk 0:00:27.6]}
30... Qb2 {[%clk 0:00:06.5]} 31. Rxf5 {[%clk 0:00:25.6]} 31... Rxf5 {[%clk
0:00:07.4]} 32. Rg8+ {[%clk 0:00:25.3]} 32... Rxg8 {[%clk 0:00:05.6]} 33. Qxg8#
{[%clk 0:00:26.2]} 1-0

[Event "*** SCC Grand Prix: Titled Tuesday Blitz"]
[Site "Chess.com"]
[Date "2020.08.25"]
[Round "3"]
[White "bazar-wokzal"]
[Black "Aleksey_Sorokin"]
[Result "1-0"]
[WhiteElo "2486"]
[BlackElo "2710"]
[TimeControl "180+1"]
[EndTime "10:29:53 PDT"]
[Termination "bazar-wokzal won by resignation"]

1. e4 {[%clk 0:03:00.9]} 1... c6 {[%clk 0:02:59.4]} 2. d4 {[%clk 0:03:00.4]}
2... d5 {[%clk 0:03:00.3]} 3. e5 {[%clk 0:03:00.5]} 3... Bf5 {[%clk 0:02:59.6]}
4. Nc3 {[%clk 0:02:59.8]} 4... Qc7 {[%clk 0:02:55.6]} 5. g4 {[%clk 0:02:58.7]}
5... Bd7 {[%clk 0:02:53.6]} 6. f4 {[%clk 0:02:59]} 6... h5 {[%clk 0:02:49.8]} 7.
f5 {[%clk 0:02:59.1]} 7... hxg4 {[%clk 0:02:47.7]} 8. e6 {[%clk 0:02:59.2]} 8...
fxe6 {[%clk 0:02:45.8]} 9. Qxg4 {[%clk 0:02:58.4]} 9... exf5 {[%clk 0:02:41.1]}
10. Qg6+ {[%clk 0:02:58.6]} 10... Kd8 {[%clk 0:02:40.4]} 11. Nf3 {[%clk
0:02:58.8]} 11... Be8 {[%clk 0:02:09.6]} 12. Qxf5 {[%clk 0:02:53.8]} 12... Nf6
{[%clk 0:02:09.5]} 13. Bf4 {[%clk 0:02:51.9]} 13... Qd7 {[%clk 0:02:06.6]} 14.
Qd3 {[%clk 0:02:42.6]} 14... Qg4 {[%clk 0:02:00.1]} 15. Qe3 {[%clk 0:02:32]}
15... Nbd7 {[%clk 0:01:55.4]} 16. O-O-O {[%clk 0:02:28.2]} 16... Ne4 {[%clk
0:01:21.4]} 17. Nxe4 {[%clk 0:02:16.6]} 17... dxe4 {[%clk 0:01:22.3]} 18. Ng5
{[%clk 0:02:09.2]} 18... e5 {[%clk 0:01:13.1]} 19. dxe5 {[%clk 0:01:58.8]} 19...
Bc5 {[%clk 0:01:12.9]} 20. Qd2 {[%clk 0:01:29.6]} 20... e3 {[%clk 0:00:47.6]}
21. Bxe3 {[%clk 0:01:26.4]} 21... Bxe3 {[%clk 0:00:47.3]} 22. Qxe3 {[%clk
0:01:26.9]} 22... Ke7 {[%clk 0:00:42]} 23. Bh3 {[%clk 0:01:19.2]} 23... Qc4
{[%clk 0:00:38.3]} 24. Be6 {[%clk 0:00:51.2]} 24... Qb4 {[%clk 0:00:35.1]} 25.
a3 {[%clk 0:00:44.5]} 25... Qb6 {[%clk 0:00:30.3]} 26. Qg3 {[%clk 0:00:36.1]}
26... Nf8 {[%clk 0:00:26.5]} 27. Bb3 {[%clk 0:00:33.8]} 27... Bh5 {[%clk
0:00:24.3]} 28. Rd6 {[%clk 0:00:29.7]} 28... Rd8 {[%clk 0:00:20.2]} 29. Ne6
{[%clk 0:00:28.3]} 29... Rxd6 {[%clk 0:00:14.9]} 30. exd6+ {[%clk 0:00:28.1]}
30... Ke8 {[%clk 0:00:12.9]} 31. Nxg7+ {[%clk 0:00:25.7]} 31... Kd7 {[%clk
0:00:12.7]} 32. Nxh5 {[%clk 0:00:23.5]} 32... Rxh5 {[%clk 0:00:11.9]} 33. Qg4+
{[%clk 0:00:23.9]} 33... Kxd6 {[%clk 0:00:11.6]} 34. Qxh5 {[%clk 0:00:24]} 1-0